bitfinex-derivatives/quotes_BTCF0:USTF0_20210109
["timestamp","ask_amount","ask_price","bid_price","bid_amount"]
[1610173787258,0.50661324,39160.0,39124.0,0.00020393]
[1610173787454,0.50661324,39160.0,39121.0,0.00020393]
[1610173787656,0.50669952,39159.0,39121.0,0.00020393]
[1610173787857,0.50669952,39159.0,39120.0,0.00020393]
[1610173788057,0.50677224,39158.0,39122.0,0.00020395]
[1610173788257,0.50677224,39158.0,39121.0,0.00020395]
[1610173788457,0.37439559,39164.0,39121.0,0.00020395]
[1610173788458,0.50663467,39157.0,39121.0,0.00020395]
[1610173788657,0.50663467,39157.0,39123.0,0.00020395]
[1610173788858,0.95559712,39157.0,39146.0,0.13632608]
[1610173789259,0.58117467,39157.0,39146.0,0.13632608]
[1610173789658,0.88038482,39156.0,39146.0,0.13632608]
[1610173790057,0.86838482,39156.0,39146.0,0.13476588]
[1610173790458,0.88084945,39155.0,39146.0,0.13476588]
[1610173790858,0.13632608,39150.0,39146.0,0.13476588]
[1610173793460,0.12372608,39150.0,39146.0,0.13476588]
[1610173795863,0.12372608,39150.0,39119.0,3.3181]
[1610173796263,0.12372608,39150.0,39120.0,0.0002055]
[1610173796463,0.11222608,39150.0,39120.0,0.0002055]
[1610173796864,0.07454,39157.0,39141.0,0.13632608]
[1610173797064,0.50748962,39158.0,39120.0,0.0002055]
[1610173797264,0.50735268,39157.0,39119.0,3.3181]
[1610173797463,0.61741268,39157.0,39121.0,0.00020553]
[1610173797663,0.9918761,39157.0,39121.0,0.00020553]
[1610173797865,0.9918761,39157.0,39120.0,0.00020553]
[1610173798064,0.9918761,39157.0,39122.0,0.00020553]
[1610173798065,0.61741268,39157.0,39122.0,0.00020553]
[1610173798264,0.61741268,39157.0,39121.0,0.00020551]
[1610173798464,0.11006,39157.0,39121.0,0.00020551]
[1610173798664,0.11006,39157.0,39123.0,0.00020551]
[1610173798864,0.11006,39157.0,39147.0,0.13632608]
[1610173799464,0.09806,39157.0,39147.0,0.13632608]
[1610173800864,0.09806,39157.0,39156.0,0.13632608]
[1610173801065,0.09806,39157.0,39129.0,3.4336]
[1610173801464,0.09806,39157.0,39130.0,0.00020548]
[1610173802065,0.88254371,39156.0,39129.0,3.4336]
[1610173802468,0.50825719,39154.0,39129.0,3.4336]
[1610173802864,0.49545719,39154.0,39142.0,0.13632608]
[1610173803266,0.37442744,39156.0,39142.0,0.13632608]
[1610173804467,0.00031214,39155.0,39143.0,0.00020553]
[1610173804966,0.00031214,39155.0,39129.0,3.4336]
[1610173804967,0.13632608,39144.0,39134.0,0.13632608]
[1610173805167,0.13632608,39144.0,39116.0,0.08623]
[1610173805168,0.22942608,39144.0,39116.0,0.08623]
[1610173805366,0.22942608,39144.0,39135.0,0.00020554]
[1610173805767,0.22942608,39144.0,39117.0,0.09262554]
[1610173805969,0.21752608,39144.0,39136.0,0.00020554]
[1610173806169,0.21752608,39144.0,39118.0,0.00020557]
[1610173806369,0.37454898,39143.0,39118.0,0.00020557]
[1610173806570,3.9274,39141.0,39096.0,3.6063]
[1610173806772,0.61854738,39139.0,39119.0,0.00020559]
[1610173806971,0.13632608,39120.0,39107.0,0.13653169]
[1610173807169,0.21881608,39120.0,39107.0,0.13653169]
[1610173807372,0.21881608,39120.0,39107.0,0.13632608]
[1610173807573,0.21881608,39120.0,39108.0,0.00020565]
[1610173808970,0.12452608,39109.0,39108.0,0.00020565]
[1610173811670,0.12452608,39109.0,39107.0,0.13632608]
[1610173811870,0.23324608,39109.0,39107.0,0.13632608]
[1610173812070,0.22174608,39109.0,39107.0,0.13632608]
[1610173813872,0.22174608,39109.0,39108.0,0.00020566]
[1610173814072,0.22174608,39109.0,39107.0,0.13632608]
[1610173814471,0.22174608,39109.0,39108.0,0.00020566]
[1610173815173,0.20954608,39109.0,39108.0,0.00020566]
[1610173815772,0.20954608,39109.0,39087.0,3.3607]
[1610173816372,0.20954608,39109.0,39088.0,0.00020568]
[1610173816574,3.58244608,39109.0,39088.0,0.00020568]
[1610173816773,3.58244608,39109.0,39085.0,0.00020568]
[1610173816973,0.13632608,39086.0,39085.0,0.00020568]
[1610173817172,0.13632608,39086.0,39080.0,0.13632608]
[1610173817573,0.13632608,39086.0,39085.0,0.00020575]
[1610173818176,4.0416,39095.0,39081.0,0.00020575]
[1610173818375,4.0416,39095.0,39085.0,0.00020575]
[1610173818575,4.0416,39095.0,39082.0,0.00020573]
[1610173818976,4.0416,39095.0,39094.0,0.13632608]
[1610173819379,4.0416,39095.0,39094.0,0.13653181]
[1610173820177,0.08336,39100.0,39094.0,0.13653181]
[1610173820778,0.08336,39100.0,39095.0,0.00020571]
[1610173820977,0.08336,39100.0,39099.0,0.13632608]
[1610173821378,0.07156,39100.0,39099.0,0.13632608]
[1610173821579,0.07156,39100.0,39099.0,0.00020569]
[1610173821976,0.07156,39100.0,39099.0,0.00020571]
[1610173822377,0.10872,39109.0,39099.0,0.00020571]
[1610173822578,0.41750357,39114.0,39078.0,3.8927]
[1610173822779,0.41750357,39114.0,39100.0,0.00020569]
[1610173822983,0.13632608,39101.0,39100.0,0.00020569]
[1610173823181,0.13632608,39101.0,39079.0,0.00020569]
[1610173823380,0.13632608,39101.0,39100.0,0.00020571]
[1610173823784,0.13632608,39101.0,39080.0,0.00020571]
[1610173823980,0.23819608,39101.0,39076.0,0.09004]
[1610173824180,0.23819608,39101.0,39081.0,0.00020572]
[1610173824380,0.22619608,39101.0,39077.0,0.00020572]
[1610173824981,0.10187,39101.0,39097.0,0.13632608]
[1610173825584,0.10187,39101.0,39098.0,0.00020572]
[1610173825982,0.10187,39101.0,39076.0,0.09004]
[1610173826181,0.10187,39101.0,39072.0,3.5596]
[1610173826582,0.10187,39101.0,39073.0,0.00020578]
[1610173826782,0.10187,39101.0,39073.0,0.08032578]
[1610173826982,0.13632608,39097.0,39093.0,0.13632608]
[1610173827182,0.13632608,39097.0,39073.0,0.08032578]
[1610173827382,0.13632608,39097.0,39094.0,0.00020578]
[1610173827583,0.11252608,39097.0,39074.0,0.00020578]
[1610173827782,0.11252608,39097.0,39073.0,0.08012]
[1610173828184,0.11252608,39097.0,39074.0,0.00020578]
[1610173828784,3.4144,39089.0,39074.0,0.00020578]
[1610173828983,0.13632608,39075.0,39074.0,0.00020578]
[1610173830885,0.13552608,39075.0,39074.0,0.00020578]
[1610173831088,0.59182608,39075.0,39074.0,0.00020578]
[1610173831285,0.59182608,39075.0,39051.0,0.00020591]
[1610173831485,0.13552608,39075.0,39051.0,0.00020591]
[1610173833188,0.13632608,39052.0,39045.0,0.00020593]
[1610173833987,0.12432608,39052.0,39034.0,0.00020593]
[1610173834187,0.11398,39062.0,39034.0,0.00020593]
[1610173834387,0.11398,39062.0,39034.0,0.10210593]
[1610173834790,0.11398,39062.0,39035.0,0.00020593]
[1610173835090,0.11398,39062.0,39057.0,0.13632608]
[1610173837092,0.10178,39062.0,39053.0,0.13632608]
[1610173837492,0.10178,39062.0,39054.0,0.00020593]
[1610173838296,0.10138,39076.0,39054.0,0.00020593]
[1610173838492,0.07938,39084.0,39054.0,0.00020593]
[1610173838696,0.2731,39092.0,39054.0,0.00020593]
[1610173839095,0.2731,39092.0,39083.0,0.13632608]
[1610173839294,0.10451,39093.0,39083.0,0.13632608]
[1610173839693,0.41701656,39104.0,39083.0,0.13632608]
[1610173839894,0.68777303,39105.0,39083.0,0.13632608]
[1610173840295,0.67537303,39105.0,39083.0,0.13632608]
[1610173840496,0.258,39105.0,39083.0,0.13632608]
[1610173841096,0.258,39105.0,39103.0,0.13632608]
[1610173841396,0.258,39105.0,39084.0,0.00020577]
[1610173841596,0.33922,39105.0,39071.0,3.2367]
[1610173841998,0.33922,39105.0,39072.0,0.00020576]
[1610173843196,0.33922,39105.0,39087.0,0.13632608]
[1610173843398,0.32772,39105.0,39087.0,0.13632608]
[1610173844597,0.32772,39105.0,39088.0,0.00020578]
[1610173845197,0.32772,39105.0,39096.0,0.13632608]
[1610173845397,0.08122,39105.0,39096.0,0.13632608]
[1610173846398,0.08122,39105.0,39097.0,0.00020569]
[1610173846598,3.9726,39113.0,39097.0,0.00020569]
[1610173847098,0.13632608,39098.0,39097.0,0.00020569]
[1610173847298,0.13632608,39098.0,39087.0,0.13632608]
[1610173847799,0.24656608,39098.0,39088.0,0.0002057]
[1610173849100,0.13632608,39089.0,39088.0,0.0002057]
[1610173849701,0.12442608,39089.0,39088.0,0.0002057]
[1610173852806,0.11242608,39089.0,39088.0,0.0002057]
[1610173854308,0.21507608,39089.0,39072.0,0.00020309]
[1610173854508,0.21507608,39089.0,39069.0,0.11257]
[1610173854708,2.9729,39084.0,39061.0,0.07333]
[1610173854908,2.9729,39084.0,39064.0,0.0156262]
[1610173855107,0.13632608,39065.0,39062.0,0.00020312]
[1610173855309,0.09037,39078.0,39065.0,0.00020312]
[1610173855508,0.09037,39078.0,39063.0,0.00020316]
[1610173855909,0.07847,39078.0,39062.0,0.00020316]
[1610173856111,0.07847,39078.0,39064.0,0.00020316]
[1610173856310,0.07847,39078.0,39063.0,0.00020316]
[1610173856709,0.07847,39078.0,39061.0,0.00020318]
[1610173856911,0.07847,39078.0,39064.0,0.00020318]
[1610173857110,0.07847,39078.0,39062.0,0.00020318]
[1610173857111,0.13632608,39065.0,39062.0,0.00020318]
[1610173857511,3.9134,39062.0,39055.0,0.0002032]
[1610173857711,3.9134,39062.0,39030.0,3.987]
[1610173857910,3.9134,39062.0,39056.0,0.00020322]
[1610173858310,3.9134,39062.0,39036.0,0.1154]
[1610173858512,3.9134,39062.0,39057.0,0.00020325]
[1610173858710,0.13632608,39065.0,39037.0,0.00020325]
[1610173858911,0.12472608,39065.0,39037.0,0.00020325]
[1610173859114,0.11098,39069.0,39058.0,0.00020325]
[1610173859312,0.11098,39069.0,39040.0,0.13632608]
[1610173859513,0.11098,39069.0,39059.0,0.00020327]
[1610173859913,0.11098,39069.0,39045.0,3.9312]
[1610173860113,0.11098,39069.0,39060.0,0.00020325]
[1610173860312,0.11098,39069.0,39046.0,0.00020325]
[1610173860712,0.11098,39069.0,39061.0,0.00020325]
[1610173860911,0.11098,39069.0,39047.0,0.00020325]
[1610173861112,0.13632608,39065.0,39057.0,0.13632608]
[1610173861512,0.13632608,39065.0,39058.0,0.00020323]
[1610173862012,0.12402608,39065.0,39058.0,0.00020323]
[1610173862813,0.12402608,39065.0,39059.0,0.00020323]
[1610173863215,0.13632608,39060.0,39059.0,0.00020323]
[1610173863418,0.22950608,39060.0,39048.0,0.13632608]
[1610173863619,0.09318,39060.0,39059.0,0.00020323]
[1610173863819,0.09318,39060.0,39049.0,0.00020323]
[1610173865020,2.883,39054.0,39049.0,0.00020323]
[1610173865219,0.13632608,39050.0,39031.0,0.13632608]
[1610173865618,0.22633608,39050.0,39031.0,0.13632608]
[1610173865819,0.22633608,39050.0,39032.0,0.00020331]
[1610173867222,0.22633608,39050.0,39049.0,0.13632608]
[1610173867624,0.22633608,39050.0,39049.0,0.13652939]
[1610173868322,0.21453608,39050.0,39049.0,0.13652939]
[1610173869325,0.21453608,39050.0,39049.0,0.00020331]
[1610173869725,0.21453608,39050.0,39039.0,0.00020328]
[1610173869923,0.21453608,39050.0,39049.0,0.00020328]
[1610173870123,0.21453608,39050.0,39040.0,0.0002033]
[1610173870523,0.21453608,39050.0,39038.0,0.13632608]
[1610173870724,0.21453608,39050.0,39041.0,0.0002033]
[1610173870922,0.21453608,39050.0,39039.0,0.0002033]
[1610173871325,0.12452608,39040.0,39039.0,0.0002033]
[1610173871526,0.23896608,39040.0,39029.0,0.13632608]
[1610173871725,0.23896608,39040.0,39039.0,0.00020332]
[1610173872125,0.23896608,39040.0,39030.0,0.00020332]
[1610173872325,0.23896608,39040.0,39039.0,0.00020332]
[1610173872526,0.23896608,39040.0,39031.0,0.00020332]
[1610173872928,0.11444,39040.0,39039.0,0.00020332]
[1610173873126,0.11444,39040.0,39032.0,0.00020332]
[1610173873328,0.11444,39040.0,39039.0,0.1365294]
[1610173873526,0.11444,39040.0,39039.0,0.00020332]
[1610173873728,0.11444,39040.0,39020.0,0.08957]
[1610173873729,0.11444,39040.0,39029.0,3.0565]
[1610173874131,0.11444,39040.0,39030.0,0.00020329]
[1610173874530,0.10244,39040.0,39030.0,0.00020329]
[1610173875226,0.10244,39040.0,39039.0,0.13632608]
[1610173875829,0.10244,39040.0,39039.0,0.13652937]
[1610173876728,0.09001,39050.0,39039.0,0.13652937]
[1610173876927,0.09318,39060.0,39041.0,3.2813]
[1610173877131,0.11098,39069.0,39041.0,3.2813]
[1610173877329,0.41721129,39071.0,39062.0,0.13632608]
[1610173877629,0.4060463,39073.0,39062.0,0.13632608]
[1610173877831,0.50109519,39074.0,39062.0,0.13632608]
[1610173878230,0.87635177,39075.0,39062.0,0.13632608]
[1610173879231,0.518,39074.0,39063.0,0.00020325]
[1610173879432,0.08453,39074.0,39063.0,0.00020325]
[1610173879634,3.0436,39064.0,39059.0,0.00020327]
[1610173879833,3.16015,39064.0,39059.0,0.00020327]
[1610173880034,3.16015,39064.0,39033.0,4.1854]
[1610173880433,3.16015,39064.0,39034.0,0.0002033]
[1610173880633,3.14825,39064.0,39034.0,0.0002033]
[1610173880833,0.87505073,39063.0,39034.0,0.0002033]
[1610173881235,0.13632608,39058.0,39053.0,0.13632608]
[1610173881833,0.13632608,39058.0,39054.0,0.00020328]
[1610173882636,0.13632608,39058.0,39034.0,0.00020328]
[1610173882836,0.13632608,39058.0,39033.0,4.1854]
[1610173882837,0.13632608,39058.0,39055.0,0.00020328]
[1610173883038,0.13632608,39058.0,39035.0,0.0002033]
[1610173883236,0.13632608,39042.0,39039.0,0.13632608]
[1610173883436,0.07496,39043.0,39039.0,0.13632608]
[1610173883637,0.06306,39043.0,39040.0,0.0002033]
[1610173884438,0.06306,39043.0,39035.0,0.0002033]
[1610173884639,0.06306,39043.0,39041.0,0.0002033]
[1610173884841,0.5823,39042.0,39041.0,0.0002033]
[1610173885041,0.5823,39042.0,39036.0,0.00020332]
[1610173885240,0.06306,39043.0,39041.0,0.00020332]
[1610173885439,0.06306,39043.0,39037.0,0.00020335]
[1610173885642,4.1541,39038.0,39037.0,0.00020335]
[1610173885840,4.1541,39038.0,39018.0,0.13632608]
[1610173886042,0.06306,39043.0,39037.0,0.00020338]
[1610173886242,0.06306,39043.0,39019.0,0.00020338]
[1610173886441,4.0177,39037.0,39019.0,0.00020338]
[1610173886641,4.0062,39037.0,39010.0,0.10099]
[1610173886842,0.06306,39043.0,39020.0,0.00020339]
[1610173887042,3.2361,39021.0,39011.0,0.00020339]
[1610173887244,0.13632608,39012.0,39010.0,0.10099]
[1610173887445,0.13632608,39012.0,39007.0,0.13632608]
[1610173887643,0.13632608,39012.0,39011.0,0.00020341]
[1610173887844,0.13632608,39012.0,39008.0,0.00020341]
[1610173888044,3.4439,39009.0,39007.0,0.13632608]
[1610173888244,3.4439,39009.0,39002.0,0.08013]
[1610173888644,3.4439,39009.0,39003.0,0.00020343]
[1610173889246,0.13632608,39004.0,39003.0,0.00020343]
[1610173889647,0.12472608,39004.0,39003.0,0.00020343]
[1610173890049,0.12472608,39004.0,39002.0,0.00020345]
[1610173890246,0.12472608,39004.0,39003.0,0.00020345]
[1610173890447,3.89712608,39004.0,39003.0,0.00020345]
[1610173890847,3.89712608,39004.0,39003.0,0.00020347]
[1610173891047,3.89712608,39004.0,38986.0,0.00020347]
[1610173891247,3.89712608,39004.0,39003.0,0.00020347]
[1610173891446,3.7724,39004.0,38987.0,0.13632608]
[1610173891648,3.7724,39004.0,38987.0,0.13652956]
[1610173891846,3.7724,39004.0,38988.0,0.00020348]
[1610173892250,3.7724,39004.0,38987.0,0.13632608]
[1610173892448,3.7724,39004.0,38985.0,0.08984]
[1610173892449,3.7724,39004.0,38989.0,0.00020352]
[1610173892658,0.08952,39006.0,38988.0,0.00020354]
[1610173892849,3.8816,38990.0,38975.0,0.07677]
[1610173893055,3.8816,38990.0,38989.0,0.00020359]
[1610173893457,4.01792608,38990.0,38976.0,0.0002036]
[1610173893660,4.01792608,38990.0,38966.0,0.07615]
[1610173893849,4.01792608,38990.0,38940.0,2.8811]
[1610173894256,0.13632608,38990.0,38903.0,1.5]
[1610173894459,0.13632608,38990.0,38941.0,0.00020365]
[1610173894657,0.13632608,38990.0,38941.0,0.07577]
[1610173895052,0.13632608,38990.0,38942.0,0.00020365]
[1610173895454,0.13632608,38984.0,38979.0,0.13632608]
[1610173895655,0.21831608,38984.0,38979.0,0.13632608]
[1610173895854,0.20641608,38984.0,38979.0,0.13632608]
[1610173896054,0.20641608,38984.0,38944.0,4.2457]
[1610173896656,0.20641608,38984.0,38945.0,0.00020362]
[1610173897457,0.08199,38984.0,38983.0,0.13632608]
[1610173898258,0.08925,38994.0,38983.0,0.13632608]
[1610173898459,0.5705,39005.0,38983.0,0.13632608]
[1610173898860,0.2915,39005.0,38983.0,0.13632608]
[1610173899463,0.08952,39006.0,39004.0,0.13632608]
[1610173899663,0.09519,39017.0,39004.0,0.13632608]
[1610173899863,0.0138995,39028.0,39004.0,0.13632608]
[1610173900064,0.281,39029.0,39004.0,0.13632608]
[1610173900566,0.01390806,39038.0,39004.0,0.13632608]
[1610173900764,0.01390806,39038.0,39004.0,0.22236608]
[1610173900965,0.29891775,39043.0,39004.0,0.22236608]
[1610173901365,0.13632608,39042.0,39040.0,0.13632608]
[1610173901565,0.11097,39042.0,39040.0,0.13632608]
[1610173901766,0.09937,39042.0,39040.0,0.13632608]
[1610173902165,0.09937,39042.0,38994.0,0.10958]
[1610173902564,0.09937,39042.0,38995.0,0.0002034]
[1610173903166,0.09937,39042.0,38994.0,0.10958]
[1610173903366,0.23569608,39042.0,39035.0,0.13632608]
[1610173903767,0.09937,39042.0,39035.0,0.13632608]
[1610173904770,0.08787,39042.0,39035.0,0.13632608]
[1610173905474,0.08787,39042.0,39041.0,0.13632608]
[1610173905670,0.08787,39042.0,39021.0,3.1787]
[1610173905872,0.08787,39042.0,38994.0,0.10958]
[1610173906071,0.08787,39042.0,39001.0,3.1307]
[1610173906674,2.9352,39045.0,39001.0,3.1307]
[1610173906675,2.94921342,39045.0,39001.0,3.1307]
[1610173907074,0.01402156,39044.0,39001.0,3.1307]
[1610173907474,0.01402156,39044.0,39028.0,0.13632608]
[1610173907674,0.01401825,39043.0,39028.0,0.13632608]
[1610173907875,0.41899472,39043.0,39028.0,0.13632608]
[1610173908077,0.53875472,39043.0,39028.0,0.13632608]
[1610173908581,0.53875472,39043.0,39001.0,3.1307]
[1610173908777,0.53875472,39043.0,38996.0,0.07804]
[1610173908977,3.964,39033.0,38996.0,0.07804]
[1610173909178,3.964,39033.0,38980.0,4.1775]
[1610173909379,4.07228,39033.0,39003.0,0.13632608]
[1610173909578,0.2824,39032.0,39003.0,0.13632608]
[1610173910979,0.2709,39032.0,39003.0,0.13632608]
[1610173911381,0.2709,39032.0,39017.0,0.13632608]
[1610173912083,0.41562901,39031.0,39017.0,0.13632608]
[1610173912483,0.41562901,39031.0,38984.0,0.09746]
[1610173912684,0.68688261,39032.0,38984.0,0.09746]
[1610173912884,0.41594789,39031.0,38985.0,0.00020008]
[1610173913386,0.13632608,39012.0,39005.0,0.13632608]
[1610173913584,0.21730608,39012.0,39005.0,0.13632608]
[1610173913784,0.21730608,39012.0,38985.0,0.00020008]
[1610173913985,0.20570608,39012.0,38984.0,0.09746]
[1610173914184,0.20570608,39012.0,38986.0,0.00020009]
[1610173914385,0.08098,39012.0,38985.0,0.00020009]
[1610173915487,0.13632608,39007.0,39003.0,0.13632608]
[1610173916086,0.08098,39012.0,39003.0,0.13632608]
[1610173916987,0.06948,39012.0,39003.0,0.13632608]
[1610173917386,0.06948,39012.0,39010.0,0.13632608]
[1610173918587,0.41807129,39028.0,39010.0,0.13632608]
[1610173918785,0.41807129,39028.0,39011.0,0.00020008]
[1610173918986,0.52769141,39033.0,39011.0,0.00020008]
[1610173919386,0.52769141,39033.0,39032.0,0.13632608]
[1610173919587,0.10828,39033.0,39032.0,0.13632608]
[1610173919787,0.42047134,39037.0,39032.0,0.13632608]
[1610173919989,0.42294833,39041.0,39032.0,0.13632608]
[1610173920188,0.41064833,39041.0,39032.0,0.13632608]
[1610173920991,0.11976,39043.0,39032.0,0.13632608]
[1610173921192,0.51011359,39048.0,39032.0,0.13632608]
[1610173921392,0.51011359,39048.0,39044.0,0.13632608]
[1610173921590,0.51089239,39047.0,39044.0,0.13632608]
[1610173921790,0.61739239,39047.0,39044.0,0.13632608]
[1610173921991,0.1065,39047.0,39044.0,0.13632608]
[1610173922293,0.1065,39047.0,39021.0,3.2996]
[1610173922694,0.1065,39047.0,39022.0,0.0002]
[1610173922894,0.51085044,39045.0,39022.0,0.0002]
[1610173923093,0.49915044,39045.0,39022.0,0.0002]
[1610173923393,0.13632608,39037.0,39030.0,0.13632608]
[1610173923796,0.13632608,39037.0,39022.0,0.0002]
[1610173923994,0.13632608,39037.0,39031.0,0.0002]
[1610173924196,0.13632608,39037.0,39023.0,0.0002]
[1610173924596,0.13632608,39037.0,39032.0,0.0002]
[1610173924796,0.13632608,39037.0,39024.0,0.0002]
[1610173925098,0.13632608,39037.0,39033.0,0.0002]
[1610173925296,0.13632608,39037.0,39025.0,0.0002]
[1610173925497,0.62353659,39045.0,39034.0,0.0002]
[1610173925697,0.62372991,39046.0,39034.0,0.0002]
[1610173925897,0.62372991,39046.0,39033.0,0.13612608]
[1610173926096,0.73043463,39047.0,39035.0,0.0002]
[1610173926298,0.71833463,39047.0,39034.0,0.0002]
[1610173926498,0.37541454,39046.0,39034.0,0.0002]
[1610173926699,0.37541454,39046.0,39036.0,0.0002]
[1610173926898,0.37541454,39046.0,39035.0,0.0002]
[1610173927097,0.0944,39047.0,39033.0,0.13612608]
[1610173927098,0.0944,39047.0,39037.0,0.0002]
[1610173927299,0.62155226,39051.0,39037.0,0.0002]
[1610173927497,0.62155226,39051.0,39022.0,0.10531]
[1610173927498,0.62177567,39052.0,39050.0,0.13632608]
[1610173927899,0.6212336,39051.0,39050.0,0.13632608]
[1610173928300,0.3753817,39051.0,39050.0,0.13632608]
[1610173928600,0.62079269,39052.0,39050.0,0.13632608]
[1610173929400,0.13632608,39051.0,39050.0,0.13632608]
[1610173929600,0.51169721,39051.0,39050.0,0.13632608]
[1610173929800,0.59292721,39051.0,39050.0,0.13632608]
[1610173930200,0.59292721,39051.0,39022.0,0.10531]
[1610173930600,0.59292721,39051.0,39023.0,0.0002]
[1610173930801,0.37538304,39050.0,39023.0,0.0002]
[1610173931401,0.37538304,39050.0,39047.0,0.13632608]
[1610173931801,0.37538304,39050.0,39022.0,0.10531]
[1610173932203,0.37538304,39050.0,39023.0,0.0002]
[1610173932603,0.36348304,39050.0,39023.0,0.0002]
[1610173933006,0.08123,39051.0,39022.0,0.08804437]
[1610173933209,0.08123,39051.0,39024.0,0.0002]
[1610173933405,0.08123,39051.0,39050.0,0.13632608]
[1610173934006,0.08123,39051.0,39050.0,0.13652608]
[1610173934707,0.13632608,39053.0,39050.0,0.13652608]
[1610173935110,0.13632608,39053.0,39051.0,0.0002]
[1610173935609,0.12432608,39053.0,39051.0,0.0002]
[1610173935810,0.12432608,39053.0,39026.0,3.6305]
[1610173936011,0.37536057,39052.0,39026.0,3.6305]
[1610173936410,0.37536057,39052.0,39027.0,0.0002]
[1610173937509,0.37536057,39052.0,39047.0,0.13632608]
[1610173937910,0.37536057,39052.0,39048.0,0.0002]
[1610173938812,0.36346057,39052.0,39048.0,0.0002]
[1610173939013,0.09486,39053.0,39048.0,0.0002]
[1610173939415,0.13632608,39049.0,39048.0,0.0002]
[1610173939813,0.13632608,39049.0,39045.0,0.0002]
[1610173940014,0.51169391,39049.0,39048.0,0.0002]
[1610173940212,0.51169391,39049.0,39046.0,0.0002]
[1610173940615,0.51169391,39049.0,39026.0,0.0002]
[1610173940815,0.51169391,39049.0,39025.0,3.3786]
[1610173940816,0.37535664,39048.0,39047.0,0.0002]
[1610173941015,0.37535664,39048.0,39027.0,0.0002]
[1610173941415,0.37535664,39048.0,39045.0,0.13632608]
[1610173941616,0.09486,39053.0,39045.0,0.13632608]
[1610173941819,1.2731886,39056.0,39046.0,0.0002]
[1610173942020,0.37532885,39052.0,39046.0,0.0002]
[1610173942418,0.09595,39052.0,39046.0,0.0002]
[1610173942818,0.37534553,39051.0,39046.0,0.0002]
[1610173943120,0.37534553,39051.0,39026.0,0.0002]
[1610173943521,0.37534553,39051.0,39041.0,0.13632608]
[1610173943919,0.37534553,39051.0,39042.0,0.0002]
[1610173945121,0.36344553,39051.0,39042.0,0.0002]
[1610173945521,0.09595,39052.0,39042.0,0.0002]
[1610173945522,0.13632608,39043.0,39042.0,0.0002]
[1610173946122,0.13632608,39043.0,39027.0,0.0002]
[1610173946323,0.13632608,39043.0,39042.0,0.0002]
[1610173946723,0.13632608,39043.0,39028.0,0.0002]
[1610173946923,0.13632608,39043.0,39042.0,0.0002]
[1610173947126,0.13632608,39043.0,39029.0,0.0002]
[1610173947325,0.13632608,39043.0,39042.0,0.0002]
[1610173947726,0.13632608,39043.0,39026.0,0.13632608]
[1610173947924,0.13632608,39043.0,39042.0,0.0002]
[1610173948126,0.12432608,39043.0,39027.0,0.0002]
[1610173948524,0.12432608,39043.0,39042.0,0.0002]
[1610173948525,0.63680675,39043.0,39042.0,0.0002]
[1610173948725,0.63680675,39043.0,39028.0,0.0002]
[1610173948926,0.63680675,39043.0,39042.0,0.0002]
[1610173949326,0.63680675,39043.0,39026.0,0.13632608]
[1610173949327,1.01221788,39043.0,39029.0,0.0002]
[1610173949527,1.01221788,39043.0,39042.0,0.0002]
[1610173949729,1.01221788,39043.0,39035.0,0.13632608]
[1610173950127,1.01221788,39043.0,39042.0,0.0002]
[1610173950327,1.01221788,39043.0,39035.0,0.13632608]
[1610173950328,0.42765402,39039.0,39036.0,0.0002]
[1610173950527,0.42765402,39039.0,39035.0,0.13632608]
[1610173950728,0.42767269,39040.0,39037.0,0.0002]
[1610173951128,0.42767269,39040.0,39036.0,0.0002]
[1610173951329,0.41587269,39040.0,39038.0,0.0002]
[1610173951529,0.14359002,39039.0,39037.0,0.0002]
[1610173951930,0.13632608,39039.0,39036.0,0.0002]
[1610173952129,0.13632608,39039.0,39038.0,0.0002]
[1610173952331,0.13632608,39039.0,39037.0,0.0002]
[1610173952629,0.13632608,39039.0,39038.0,0.0002]
[1610173953029,1.02380377,39039.0,39038.0,0.0002]
[1610173953229,1.02380377,39039.0,39015.0,0.0002]
[1610173953429,0.64837431,39039.0,39038.0,0.0002]
[1610173953831,0.64837431,39039.0,39029.0,0.13632608]
[1610173953832,1.02380179,39039.0,39029.0,0.13632608]
[1610173954029,1.02380179,39039.0,39038.0,0.0002]
[1610173954232,1.02380179,39039.0,39030.0,0.0002]
[1610173954431,0.64332885,39039.0,39030.0,0.0002]
[1610173954630,0.64332885,39039.0,39038.0,0.0002]
[1610173954832,0.64332885,39039.0,39029.0,0.13632608]
[1610173954833,0.51267225,39038.0,39031.0,0.0002]
[1610173955032,0.51267225,39038.0,39029.0,0.13632608]
[1610173955232,0.88809577,39038.0,39032.0,0.0002]
[1610173955636,0.5129297,39036.0,39033.0,0.0002]
[1610173955834,0.6166297,39036.0,39033.0,0.0002]
[1610173956034,0.6166297,39036.0,39030.0,0.0002]
[1610173956335,0.6166297,39036.0,39034.0,0.0002]
[1610173956535,0.6166297,39036.0,39031.0,0.0002]
[1610173956735,0.0002,39033.0,39031.0,0.0002]
[1610173956936,0.88871115,39035.0,39030.0,0.0002]
[1610173957136,0.88871115,39035.0,39032.0,0.0002]
[1610173957337,0.88871115,39035.0,39031.0,0.0002]
[1610173957536,0.60543007,39036.0,39034.0,0.13632608]
[1610173957939,0.0918,39036.0,39035.0,0.0002]
[1610173960139,0.0918,39036.0,39034.0,0.13632608]
[1610173960341,0.0918,39036.0,39035.0,0.0002]
[1610173960641,0.0798,39036.0,39035.0,0.0002]
[1610173961042,0.51362017,39039.0,39035.0,0.0002]
[1610173961544,0.51390756,39040.0,39038.0,0.13632608]
[1610173961744,0.51374569,39039.0,39038.0,0.13632608]
[1610173962144,0.51374569,39039.0,39038.0,0.13652608]
[1610173962345,0.51386211,39040.0,39038.0,0.13652608]
[1610173962647,0.10755,39044.0,39038.0,0.13652608]
[1610173962648,0.51439349,39042.0,39038.0,0.13652608]
[1610173962844,0.51439349,39042.0,39039.0,0.0002]
[1610173963047,0.62254721,39044.0,39039.0,0.0002]
[1610173963646,0.62254721,39044.0,39043.0,0.13632608]
[1610173963847,0.61074721,39044.0,39043.0,0.13632608]
[1610173964045,0.61074721,39044.0,39043.0,0.13652608]
[1610173964248,0.09575,39044.0,39043.0,0.13652608]
[1610173964445,0.51506227,39046.0,39043.0,0.13652608]
[1610173964646,0.89027003,39044.0,39043.0,0.13652608]
[1610173964846,0.89027003,39044.0,39043.0,0.13632608]
[1610173965047,0.51492353,39044.0,39043.0,0.13652608]
[1610173965448,0.89027229,39044.0,39043.0,0.13652608]
[1610173965647,1.02659837,39044.0,39043.0,0.13652608]
[1610173965849,0.72691961,39044.0,39043.0,0.13652608]
[1610173966250,1.73155987,39044.0,39043.0,0.13652608]